[Event "Goteborg Open 2018"]
[Site "Molnlycke kulturhus, Biblioteksgatan 2, Molnlycke, Sweden"]
[Date "2018.08.18"]
[Round "5.4"]
[White "Petersson, Baldur Teodor"]
[Black "Nilsson, Eskil"]
[Result "1-0"]
[TimeControl "15 minutes + 5 seconds per move from move one (Round 1 - 4) / 90 minutes + 30 seconds per move from move one (Round 5 - 8)"]
[WhiteTitle "CM"]
[WhiteFideId "2309157"]
[BlackFideId "1716220"]
[WhiteElo "2138"]
[BlackElo "1928"]

1. e4 {[%clk 01:30:52]} {[%emt 00:00:06]} c5 {[%clk 01:30:53]} {[%emt
00:00:08]} 2. Nc3 {[%clk 01:25:30]} {[%emt 00:05:53]} Nc6 {[%clk 01:30:51]}
{[%emt 00:00:32]} 3. g3 {[%clk 01:25:46]} {[%emt 00:00:13]} g6 {[%clk
01:31:12]} {[%emt 00:00:08]} 4. Bg2 {[%clk 01:26:10]} {[%emt 00:00:06]} Bg7
{[%clk 01:31:37]} {[%emt 00:00:05]} 5. d3 {[%clk 01:26:34]} {[%emt 00:00:06]}
Rb8 {[%clk 01:32:01]} {[%emt 00:00:06]} 6. f4 {[%clk 01:26:33]} {[%emt
00:00:32]} d6 {[%clk 01:31:49]} {[%emt 00:00:42]} 7. Nf3 {[%clk 01:26:45]}
{[%emt 00:00:17]} Nd4 {[%clk 01:30:56]} {[%emt 00:01:23]} 8. h3 {[%clk
01:25:26]} {[%emt 00:01:49]} e6 {[%clk 01:30:23]} {[%emt 00:01:03]} 9. O-O
{[%clk 01:22:51]} {[%emt 00:03:06]} Ne7 {[%clk 01:30:48]} {[%emt 00:00:05]} 10.
Ne2 {[%clk 01:21:25]} {[%emt 00:01:56]} Nec6 {[%clk 01:28:42]} {[%emt
00:02:36]} 11. c3 {[%clk 01:18:53]} {[%emt 00:03:03]} Nxf3+ {[%clk 01:28:43]}
{[%emt 00:00:28]} 12. Bxf3 {[%clk 01:17:39]} {[%emt 00:01:44]} O-O {[%clk
01:26:33]} {[%emt 00:02:39]} 13. Be3 {[%clk 01:13:46]} {[%emt 00:04:24]} f5
{[%clk 01:13:22]} {[%emt 00:13:41]} 14. exf5 {[%clk 01:10:03]} {[%emt
00:04:13]} gxf5 {[%clk 01:13:34]} {[%emt 00:00:18]} 15. d4 {[%clk 01:10:13]}
{[%emt 00:00:20]} cxd4 {[%clk 00:56:19]} {[%emt 00:17:45]} 16. Nxd4 {[%clk
01:02:50]} {[%emt 00:07:54]} d5 {[%clk 00:56:00]} {[%emt 00:00:49]} 17. Rf2
{[%clk 00:59:36]} {[%emt 00:03:43]} Rf7 {[%clk 00:52:58]} {[%emt 00:03:31]} 18.
Rd2 {[%clk 00:44:27]} {[%emt 00:15:39]} Nxd4 {[%clk 00:51:33]} {[%emt
00:01:55]} 19. Bxd4 {[%clk 00:42:26]} {[%emt 00:02:31]} b5 {[%clk 00:51:38]}
{[%emt 00:00:25]} 20. a4 {[%clk 00:39:14]} {[%emt 00:03:43]} a6 {[%clk
00:45:20]} {[%emt 00:06:48]} 21. axb5 {[%clk 00:32:46]} {[%emt 00:06:57]} Bxd4+
{[%clk 00:44:36]} {[%emt 00:01:12]} 22. Rxd4 {[%clk 00:32:50]} {[%emt
00:00:27]} axb5 {[%clk 00:43:37]} {[%emt 00:01:30]} 23. Qe2 {[%clk 00:31:04]}
{[%emt 00:02:16]} Qc7 {[%clk 00:40:12]} {[%emt 00:03:51]} 24. Kh2 {[%clk
00:29:07]} {[%emt 00:02:31]} Qd6 {[%clk 00:35:34]} {[%emt 00:05:05]} 25. Rb4
{[%clk 00:28:04]} {[%emt 00:01:34]} Rfb7 {[%clk 00:35:43]} {[%emt 00:00:22]} 26.
Qe3 {[%clk 00:25:13]} {[%emt 00:03:21]} Qb6 {[%clk 00:33:10]} {[%emt 00:03:02]}
27. Qxb6 {[%clk 00:25:16]} {[%emt 00:00:27]} Rxb6 {[%clk 00:33:35]} {[%emt
00:00:05]} 28. Kg2 {[%clk 00:22:07]} {[%emt 00:03:39]} Kf7 {[%clk 00:31:44]}
{[%emt 00:02:21]} 29. Ra7+ {[%clk 00:21:21]} {[%emt 00:01:16]} R6b7 {[%clk
00:31:54]} {[%emt 00:00:21]} 30. Rxb5 {[%clk 00:21:30]} {[%emt 00:00:21]} Kf6
{[%clk 00:29:38]} {[%emt 00:02:45]} 31. Rbxb7 {[%clk 00:19:10]} {[%emt
00:02:50]} Bxb7 {[%clk 00:30:02]} {[%emt 00:00:06]} 32. b4 {[%clk 00:17:56]}
{[%emt 00:01:44]} e5 {[%clk 00:18:11]} {[%emt 00:12:22]} 33. fxe5+ {[%clk
00:17:41]} {[%emt 00:00:45]} Kxe5 {[%clk 00:18:32]} {[%emt 00:00:10]} 34. Kf2
{[%clk 00:17:46]} {[%emt 00:00:24]} h6 {[%clk 00:17:24]} {[%emt 00:01:38]} 35.
Ke3 {[%clk 00:16:41]} {[%emt 00:01:35]} Bc6 {[%clk 00:17:26]} {[%emt 00:00:28]}
36. Re7+ {[%clk 00:16:00]} {[%emt 00:01:11]} Kf6 {[%clk 00:17:27]} {[%emt
00:00:28]} 37. Rh7 {[%clk 00:15:21]} {[%emt 00:01:08]} Kg6 {[%clk 00:17:18]}
{[%emt 00:00:39]} 38. Rc7 {[%clk 00:15:45]} {[%emt 00:00:06]} d4+ {[%clk
00:17:38]} {[%emt 00:00:11]} 39. cxd4 {[%clk 00:15:47]} {[%emt 00:00:28]} Bxf3
{[%clk 00:18:00]} {[%emt 00:00:08]} 40. Kxf3 {[%clk 00:16:13]} {[%emt
00:00:04]} Rxb4 {[%clk 00:18:23]} {[%emt 00:00:07]} 41. Rd7 {[%clk 00:16:17]}
{[%emt 00:00:27]} Kf6 {[%clk 00:15:29]} {[%emt 00:03:23]} 42. Kf4 {[%clk
00:16:40]} {[%emt 00:00:07]} Ke6 {[%clk 00:15:42]} {[%emt 00:00:17]} 43. Rd8
{[%clk 00:17:05]} {[%emt 00:00:06]} Ke7 {[%clk 00:15:55]} {[%emt 00:00:16]} 44.
Rd5 {[%clk 00:17:29]} {[%emt 00:00:08]} Kf6 {[%clk 00:06:58]} {[%emt 00:09:28]}
45. Rd6+ {[%clk 00:15:39]} {[%emt 00:02:19]} Kg7 {[%clk 00:07:11]} {[%emt
00:00:16]} 46. Kxf5 {[%clk 00:16:01]} {[%emt 00:00:08]} Rb3 {[%clk 00:07:28]}
{[%emt 00:00:13]} 47. Rd7+ {[%clk 00:15:31]} {[%emt 00:01:01]} Kg8 {[%clk
00:07:02]} {[%emt 00:00:56]} 48. Kf4 {[%clk 00:15:54]} {[%emt 00:00:07]} h5
{[%clk 00:06:02]} {[%emt 00:01:30]} 49. h4 {[%clk 00:16:12]} {[%emt 00:00:12]}
Rd3 {[%clk 00:06:19]} {[%emt 00:00:13]} 50. Rd5 {[%clk 00:14:42]} {[%emt
00:02:00]} Kg7 {[%clk 00:06:41]} {[%emt 00:00:09]} 51. Rxh5 {[%clk 00:10:42]}
{[%emt 00:04:30]} Rxd4+ {[%clk 00:07:05]} {[%emt 00:00:05]} 52. Kf3 {[%clk
00:11:04]} {[%emt 00:00:08]} Rd3+ {[%clk 00:07:20]} {[%emt 00:00:15]} 53. Kg4
{[%clk 00:11:27]} {[%emt 00:00:07]} Kg6 {[%clk 00:07:29]} {[%emt 00:00:22]} 54.
Rg5+ {[%clk 00:11:46]} {[%emt 00:00:10]} Kf6 {[%clk 00:07:52]} {[%emt
00:00:07]} 55. Kh5 {[%clk 00:12:02]} {[%emt 00:00:14]} Rd8 {[%clk 00:08:05]}
{[%emt 00:00:17]} 56. Rg6+ {[%clk 00:12:24]} {[%emt 00:00:08]} Kf5 {[%clk
00:08:19]} {[%emt 00:00:16]} 57. g4+ {[%clk 00:12:47]} {[%emt 00:00:07]} Kf4
{[%clk 00:08:41]} {[%emt 00:00:07]} 58. Rf6+ {[%clk 00:13:04]} {[%emt
00:00:13]} Ke5 {[%clk 00:08:34]} {[%emt 00:00:37]} 59. g5 {[%clk 00:13:28]}
{[%emt 00:00:06]} Rd4 {[%clk 00:08:32]} {[%emt 00:00:32]} 60. Rf1 {[%clk
00:13:41]} {[%emt 00:00:17]} Ke6 {[%clk 00:08:53]} {[%emt 00:00:09]} 61. g6
{[%clk 00:14:03]} {[%emt 00:00:08]} 1-0

[Event "Goteborg Open 2018"]
[Site "Molnlycke kulturhus, Biblioteksgatan 2, Molnlycke, Sweden"]
[Date "2018.08.18"]
[Round "5.5"]
[White "Wellevit, Tomas"]
[Black "Eriksson, Kristian"]
[Result "0-1"]
[TimeControl "15 minutes + 5 seconds per move from move one (Round 1 - 4) / 90 minutes + 30 seconds per move from move one (Round 5 - 8)"]
[WhiteFideId "1731963"]
[BlackFideId "1705172"]
[WhiteElo "1905"]
[BlackElo "2097"]

1. e4 {[%clk 01:23:00]} {[%emt 00:07:59]} e5 {[%clk 01:29:07]} {[%emt
00:01:52]} 2. Nf3 {[%clk 01:23:29]} {[%emt 00:00:02]} Nc6 {[%clk 01:29:29]}
{[%emt 00:00:07]} 3. d4 {[%clk 01:23:49]} {[%emt 00:00:10]} exd4 {[%clk
01:29:33]} {[%emt 00:00:26]} 4. Bc4 {[%clk 01:24:13]} {[%emt 00:00:06]} Nf6
{[%clk 01:29:22]} {[%emt 00:00:40]} 5. Bg5 {[%clk 01:22:21]} {[%emt 00:02:23]}
Be7 {[%clk 01:25:03]} {[%emt 00:04:48]} 6. Nbd2 {[%clk 01:16:51]} {[%emt
00:06:01]} O-O {[%clk 01:22:24]} {[%emt 00:03:09]} 7. e5 {[%clk 01:16:21]}
{[%emt 00:01:00]} Ng4 {[%clk 01:20:49]} {[%emt 00:02:04]} 8. Bf4 {[%clk
01:16:28]} {[%emt 00:00:23]} d6 {[%clk 01:18:36]} {[%emt 00:02:43]} 9. exd6
{[%clk 01:14:40]} {[%emt 00:02:20]} Bxd6 {[%clk 01:18:31]} {[%emt 00:00:35]} 10.
Bxd6 {[%clk 01:14:28]} {[%emt 00:00:41]} Qxd6 {[%clk 01:11:45]} {[%emt
00:07:15]} 11. O-O {[%clk 01:03:11]} {[%emt 00:11:48]} Bf5 {[%clk 01:09:59]}
{[%emt 00:02:14]} 12. h3 {[%clk 00:59:24]} {[%emt 00:04:19]} Nge5 {[%clk
01:02:19]} {[%emt 00:08:09]} 13. Nh4 {[%clk 00:59:12]} {[%emt 00:00:42]} Be6
{[%clk 00:59:27]} {[%emt 00:03:21]} 14. Be2 {[%clk 00:55:50]} {[%emt 00:03:54]}
Qe7 {[%clk 00:58:03]} {[%emt 00:01:53]} 15. Nhf3 {[%clk 00:55:54]} {[%emt
00:00:27]} Nxf3+ {[%clk 00:52:28]} {[%emt 00:06:06]} 16. Bxf3 {[%clk 00:55:37]}
{[%emt 00:00:47]} Rad8 {[%clk 00:49:11]} {[%emt 00:03:47]} 17. Re1 {[%clk
00:54:32]} {[%emt 00:01:35]} Qc5 {[%clk 00:44:21]} {[%emt 00:05:19]} 18. Ne4
{[%clk 00:54:37]} {[%emt 00:00:25]} Qb6 {[%clk 00:42:57]} {[%emt 00:01:54]} 19.
Ng5 {[%clk 00:52:34]} {[%emt 00:02:34]} Bf5 {[%clk 00:37:58]} {[%emt 00:05:28]}
20. g4 {[%clk 00:52:52]} {[%emt 00:00:12]} Bg6 {[%clk 00:36:43]} {[%emt
00:01:45]} 21. h4 {[%clk 00:53:00]} {[%emt 00:00:22]} h6 {[%clk 00:33:19]}
{[%emt 00:03:54]} 22. Nh3 {[%clk 00:52:44]} {[%emt 00:00:46]} d3 {[%clk
00:30:43]} {[%emt 00:03:06]} 23. Be4 {[%clk 00:50:23]} {[%emt 00:02:50]} dxc2
{[%clk 00:27:05]} {[%emt 00:04:09]} 24. Qxc2 {[%clk 00:50:43]} {[%emt
00:00:11]} Nd4 {[%clk 00:26:13]} {[%emt 00:01:21]} 25. Qc3 {[%clk 00:45:39]}
{[%emt 00:05:34]} Rfe8 {[%clk 00:15:02]} {[%emt 00:11:42]} 26. Bxg6 {[%clk
00:44:32]} {[%emt 00:01:36]} Rxe1+ {[%clk 00:14:55]} {[%emt 00:00:38]} 27. Rxe1
{[%clk 00:45:00]} {[%emt 00:00:02]} Qxg6 {[%clk 00:15:11]} {[%emt 00:00:13]} 28.
Qg3 {[%clk 00:44:47]} {[%emt 00:00:42]} Qc6 {[%clk 00:13:00]} {[%emt 00:02:42]}
29. Kf1 {[%clk 00:42:12]} {[%emt 00:03:06]} Nf3 {[%clk 00:11:14]} {[%emt
00:02:17]} 30. Ra1 {[%clk 00:41:10]} {[%emt 00:01:33]} Rd3 {[%clk 00:09:32]}
{[%emt 00:02:09]} 31. Qf4 {[%clk 00:32:22]} {[%emt 00:09:17]} Nxh4 {[%clk
00:04:55]} {[%emt 00:05:10]} 32. Ng1 {[%clk 00:31:16]} {[%emt 00:01:35]} Rd6
{[%clk 00:04:15]} {[%emt 00:01:10]} 33. Qg3 {[%clk 00:30:32]} {[%emt 00:01:13]}
Ng6 {[%clk 00:03:57]} {[%emt 00:00:49]} 34. Re1 {[%clk 00:29:45]} {[%emt
00:01:17]} Rd2 {[%clk 00:03:20]} {[%emt 00:01:07]} 35. Re2 {[%clk 00:29:13]}
{[%emt 00:01:03]} Qc4 {[%clk 00:03:10]} {[%emt 00:00:39]} 36. b3 {[%clk
00:28:37]} {[%emt 00:01:07]} Rd1+ {[%clk 00:03:19]} {[%emt 00:00:21]} 37. Kg2
{[%clk 00:28:54]} {[%emt 00:00:13]} Rxg1+ {[%clk 00:03:32]} {[%emt 00:00:17]}
38. Kxg1 {[%clk 00:29:21]} {[%emt 00:00:03]} Qxe2 {[%clk 00:03:56]} {[%emt
00:00:07]} 0-1

[Event "Goteborg Open 2018"]
[Site "Molnlycke kulturhus, Biblioteksgatan 2, Molnlycke, Sweden"]
[Date "2018.08.18"]
[Round "5.6"]
[White "Knutsson, Hakan"]
[Black "Bengtsson, Tage"]
[Result "0-1"]
[TimeControl "15 minutes + 5 seconds per move from move one (Round 1 - 4) / 90 minutes + 30 seconds per move from move one (Round 5 - 8)"]
[WhiteFideId "1706810"]
[BlackFideId "1713850"]
[WhiteElo "1836"]
[BlackElo "2001"]

1. e4 {[%emt 00:00:23]} c5 {[%emt 00:00:06]} 2. Nf3 {[%clk 01:31:09]} {[%emt
00:00:12]} Nf6 {[%clk 01:31:13]} {[%emt 00:00:06]} 3. Nc3 {[%clk 01:30:56]}
{[%emt 00:00:42]} d5 {[%emt 00:01:21]} 4. exd5 {[%clk 01:28:47]} {[%emt
00:01:24]} Nxd5 {[%clk 01:32:04]} {[%emt 00:00:03]} 5. d4 {[%clk 01:25:49]}
{[%emt 00:03:28]} cxd4 {[%clk 01:30:14]} {[%emt 00:02:21]} 6. Nxd4 {[%clk
01:25:43]} {[%emt 00:00:36]} Nxc3 {[%clk 01:30:18]} {[%emt 00:00:26]} 7. bxc3
{[%clk 01:25:59]} {[%emt 00:00:15]} a6 {[%clk 01:30:30]} {[%emt 00:00:18]} 8.
Qf3 {[%clk 01:22:10]} {[%emt 00:04:19]} e5 {[%clk 01:25:08]} {[%emt 00:05:52]}
9. Nb3 {[%clk 01:19:11]} {[%emt 00:03:29]} Qc7 {[%clk 01:19:43]} {[%emt
00:05:55]} 10. Bb2 {[%clk 01:14:17]} {[%emt 00:05:24]} Bd6 {[%clk 01:12:49]}
{[%emt 00:07:24]} 11. Nd2 {[%clk 01:10:48]} {[%emt 00:03:59]} O-O {[%clk
01:12:47]} {[%emt 00:00:31]} 12. Bc4 {[%clk 01:07:55]} {[%emt 00:03:23]} Nd7
{[%clk 01:07:05]} {[%emt 00:06:13]} 13. Bb3 {[%clk 01:06:22]} {[%emt 00:02:03]}
Nc5 {[%clk 00:59:48]} {[%emt 00:07:46]} 14. Ne4 {[%clk 01:00:53]} {[%emt
00:06:01]} Nxe4 {[%clk 00:54:17]} {[%emt 00:06:01]} 15. Qxe4 {[%clk 01:01:09]}
{[%emt 00:00:14]} Bd7 {[%clk 00:54:43]} {[%emt 00:00:04]} 16. O-O-O {[%clk
00:56:58]} {[%emt 00:04:41]} Rad8 {[%clk 00:52:10]} {[%emt 00:03:03]} 17. f3
{[%clk 00:52:27]} {[%emt 00:05:01]} Rfe8 {[%clk 00:48:02]} {[%emt 00:04:37]} 18.
Rd3 {[%clk 00:48:49]} {[%emt 00:04:09]} Bb5 {[%clk 00:46:53]} {[%emt 00:01:39]}
19. c4 {[%clk 00:47:53]} {[%emt 00:01:25]} Bc6 {[%clk 00:47:11]} {[%emt
00:00:12]} 20. Qg4 {[%clk 00:47:45]} {[%emt 00:00:37]} Qa5 {[%clk 00:35:40]}
{[%emt 00:12:03]} 21. Rhd1 {[%clk 00:44:56]} {[%emt 00:03:19]} Ba3 {[%clk
00:34:18]} {[%emt 00:01:52]} 22. Qf5 {[%clk 00:40:57]} {[%emt 00:04:28]} Rxd3
{[%clk 00:34:22]} {[%emt 00:00:27]} 23. Qxd3 {[%clk 00:39:28]} {[%emt
00:01:59]} e4 {[%clk 00:31:28]} {[%emt 00:03:24]} 24. fxe4 {[%clk 00:36:59]}
{[%emt 00:02:59]} Bxe4 {[%clk 00:30:53]} {[%emt 00:01:05]} 25. Qg3 {[%clk
00:36:41]} {[%emt 00:00:48]} Bxb2+ {[%clk 00:30:49]} {[%emt 00:00:35]} 26. Kxb2
{[%clk 00:37:05]} {[%emt 00:00:05]} Bc6 {[%clk 00:29:54]} {[%emt 00:01:24]} 27.
Qh3 {[%clk 00:33:20]} {[%emt 00:04:15]} Qc5 {[%clk 00:28:58]} {[%emt 00:01:27]}
28. g3 {[%clk 00:32:22]} {[%emt 00:01:28]} g6 {[%clk 00:29:21]} {[%emt
00:00:07]} 29. Qf1 {[%clk 00:32:20]} {[%emt 00:00:31]} Re3 {[%clk 00:28:19]}
{[%emt 00:01:33]} 30. Kb1 {[%clk 00:30:06]} {[%emt 00:02:45]} a5 {[%clk
00:24:39]} {[%emt 00:04:10]} 31. Qf6 {[%clk 00:22:55]} {[%emt 00:07:41]} a4
{[%clk 00:24:31]} {[%emt 00:00:38]} 32. Rd8+ {[%clk 00:23:15]} {[%emt
00:00:09]} Re8 {[%clk 00:24:55]} {[%emt 00:00:07]} 33. Rxe8+ {[%clk 00:23:07]}
{[%emt 00:00:38]} Bxe8 {[%clk 00:25:23]} {[%emt 00:00:02]} 34. Qd8 {[%clk
00:22:29]} {[%emt 00:01:08]} Qf8 {[%clk 00:25:39]} {[%emt 00:00:14]} 0-1

[Event "Goteborg Open 2018"]
[Site "Molnlycke kulturhus, Biblioteksgatan 2, Molnlycke, Sweden"]
[Date "2018.08.18"]
[Round "5.7"]
[White "Buzleta, Patrik"]
[Black "Lacko, Pavel"]
[Result "1-0"]
[TimeControl "15 minutes + 5 seconds per move from move one (Round 1 - 4) / 90 minutes + 30 seconds per move from move one (Round 5 - 8)"]
[WhiteFideId "1755463"]
[BlackFideId "1701274"]
[WhiteElo "1501"]
[BlackElo "2209"]

1. Nf3 {[%clk 01:30:56]} {[%emt 00:00:03]} Nf6 {[%clk 01:30:35]} {[%emt
00:00:26]} 2. b3 {[%clk 01:30:41]} {[%emt 00:00:45]} d5 {[%clk 01:30:04]}
{[%emt 00:01:01]} 3. Bb2 {[%clk 01:30:50]} {[%emt 00:00:20]} e6 {[%clk
01:30:17]} {[%emt 00:00:17]} 4. a3 {[%clk 01:30:48]} {[%emt 00:00:33]} Be7
{[%clk 01:30:05]} {[%emt 00:00:42]} 5. h3 {[%clk 01:30:55]} {[%emt 00:00:23]}
c5 {[%clk 01:29:21]} {[%emt 00:01:14]} 6. d3 {[%clk 01:30:44]} {[%emt
00:00:41]} O-O {[%emt 00:01:06]} 7. g4 {[%clk 01:29:56]} {[%emt 00:00:32]} Nc6
{[%clk 01:26:22]} {[%emt 00:03:40]} 8. e3 {[%clk 01:29:20]} {[%emt 00:01:05]}
Qc7 {[%clk 01:23:49]} {[%emt 00:03:04]} 9. g5 {[%clk 01:27:59]} {[%emt
00:01:50]} Ne8 {[%clk 01:19:01]} {[%emt 00:05:18]} 10. Nbd2 {[%clk 01:27:26]}
{[%emt 00:01:03]} e5 {[%clk 01:16:34]} {[%emt 00:02:57]} 11. Qe2 {[%clk
01:22:59]} {[%emt 00:04:57]} Be6 {[%clk 01:15:35]} {[%emt 00:01:28]} 12. Bg2
{[%clk 01:22:54]} {[%emt 00:00:35]} a6 {[%clk 01:10:48]} {[%emt 00:05:17]} 13.
h4 {[%clk 01:21:46]} {[%emt 00:01:38]} f5 {[%clk 01:03:59]} {[%emt 00:07:18]}
14. gxf6 {[%clk 01:16:32]} {[%emt 00:05:45]} gxf6 {[%clk 01:03:16]} {[%emt
00:01:13]} 15. O-O-O {[%clk 01:07:27]} {[%emt 00:09:33]} Kh8 {[%clk 01:02:25]}
{[%emt 00:01:23]} 16. c4 {[%clk 01:07:36]} {[%emt 00:00:22]} dxc4 {[%clk
00:58:41]} {[%emt 00:04:14]} 17. dxc4 {[%clk 01:07:42]} {[%emt 00:00:24]} b5
{[%clk 00:55:06]} {[%emt 00:04:05]} 18. Rdg1 {[%clk 01:07:29]} {[%emt
00:00:43]} Nd6 {[%clk 00:53:45]} {[%emt 00:01:51]} 19. Ng5 {[%clk 01:01:15]}
{[%emt 00:06:44]} fxg5 {[%clk 00:47:23]} {[%emt 00:06:53]} 20. hxg5 {[%clk
01:01:29]} {[%emt 00:00:16]} Bxg5 {[%clk 00:45:19]} {[%emt 00:02:34]} 21. Bxc6
{[%clk 01:01:29]} {[%emt 00:00:30]} Qxc6 {[%clk 00:45:31]} {[%emt 00:00:18]} 22.
Qh5 {[%clk 01:01:47]} {[%emt 00:00:11]} 1-0

[Event "Goteborg Open 2018"]
[Site "Molnlycke kulturhus, Biblioteksgatan 2, Molnlycke, Sweden"]
[Date "2018.08.18"]
[Round "5.8"]
[White "Kardell, Mathias"]
[Black "Strom-Engdahl, Alexander"]
[Result "1/2-1/2"]
[TimeControl "15 minutes + 5 seconds per move from move one (Round 1 - 4) / 90 minutes + 30 seconds per move from move one (Round 5 - 8)"]
[WhiteFideId "1710109"]
[BlackFideId "1741586"]
[WhiteElo "2084"]
[BlackElo "1747"]

1. e4 {[%clk 01:30:57]} {[%emt 00:00:02]} e5 {[%clk 01:30:41]} {[%emt
00:00:20]} 2. Nf3 {[%clk 01:31:16]} {[%emt 00:00:10]} Nf6 {[%clk 01:30:38]}
{[%emt 00:00:33]} 3. Nxe5 {[%clk 01:31:27]} {[%emt 00:00:19]} d6 {[%clk
01:31:01]} {[%emt 00:00:07]} 4. Nf3 {[%clk 01:31:44]} {[%emt 00:00:12]} Nxe4
{[%clk 01:31:30]} {[%emt 00:00:03]} 5. d4 {[%clk 01:31:35]} {[%emt 00:00:38]}
d5 {[%clk 01:31:07]} {[%emt 00:00:52]} 6. Bd3 {[%clk 01:30:52]} {[%emt
00:01:13]} Bg4 {[%clk 01:29:32]} {[%emt 00:02:05]} 7. O-O {[%clk 01:30:18]}
{[%emt 00:01:04]} Nc6 {[%clk 01:23:52]} {[%emt 00:06:11]} 8. Re1 {[%clk
01:26:18]} {[%emt 00:04:30]} Be7 {[%clk 01:21:01]} {[%emt 00:03:20]} 9. c3
{[%clk 01:18:42]} {[%emt 00:08:07]} Nf6 {[%clk 01:19:43]} {[%emt 00:01:49]} 10.
Bg5 {[%clk 01:12:53]} {[%emt 00:06:18]} O-O {[%clk 01:18:01]} {[%emt 00:02:12]}
11. Nbd2 {[%clk 01:11:49]} {[%emt 00:01:34]} h6 {[%clk 01:06:57]} {[%emt
00:11:35]} 12. Bh4 {[%clk 01:08:34]} {[%emt 00:03:44]} Qd7 {[%clk 01:04:31]}
{[%emt 00:02:56]} 13. Qc2 {[%clk 01:02:32]} {[%emt 00:06:33]} Rfe8 {[%clk
00:54:16]} {[%emt 00:10:44]} 14. h3 {[%clk 00:56:20]} {[%emt 00:06:42]} Be6
{[%clk 00:51:34]} {[%emt 00:03:13]} 15. b4 {[%clk 00:41:24]} {[%emt 00:15:26]}
a6 {[%clk 00:50:47]} {[%emt 00:01:16]} 16. a4 {[%clk 00:40:43]} {[%emt
00:01:11]} Nh5 {[%clk 00:48:47]} {[%emt 00:02:30]} 17. b5 {[%clk 00:37:04]}
{[%emt 00:04:10]} Na5 {[%clk 00:47:28]} {[%emt 00:01:49]} 18. Ne5 {[%clk
00:35:27]} {[%emt 00:02:06]} Qd8 {[%clk 00:45:39]} {[%emt 00:02:18]} 19. Bxe7
{[%clk 00:28:10]} {[%emt 00:07:48]} Qxe7 {[%clk 00:45:34]} {[%emt 00:00:35]} 20.
Nxf7 {[%clk 00:22:46]} {[%emt 00:05:54]} Nf4 {[%clk 00:43:25]} {[%emt
00:02:38]} 21. Ne5 {[%clk 00:15:25]} {[%emt 00:07:51]} Qg5 {[%clk 00:42:57]}
{[%emt 00:00:58]} 22. Bh7+ {[%clk 00:02:22]} {[%emt 00:13:33]} Kh8 {[%clk
00:37:06]} {[%emt 00:06:20]} 23. g3 {[%clk 00:02:43]} {[%emt 00:00:09]} Nxh3+
{[%clk 00:35:58]} {[%emt 00:01:39]} 24. Kf1 {[%clk 00:02:51]} {[%emt 00:00:22]}
Qf6 {[%emt 00:08:00]} 1/2-1/2